fUST/lending_fUST_20240925
["ID","MTS","AMOUNT","RATE_DAILY","PERIOD"]
[339068856,1727195441716,-267.77087463,0.0002669,7]
[339068857,1727195441725,-267.77087463,0.0002669,7]
[339068858,1727195441734,-267.77087463,0.0002669,7]
[339068859,1727195441743,-267.77087463,0.0002669,7]
[339068860,1727195441752,-267.77087463,0.0002669,7]
[339068861,1727195441761,-267.77087463,0.0002669,7]
[339068862,1727195441770,-267.77087463,0.0002669,7]
[339068863,1727195441780,-267.77087463,0.0002669,7]
[339068864,1727195441789,-267.77087463,0.0002669,7]
[339068865,1727195441799,-267.77087463,0.0002669,7]
[339068866,1727195441807,-1309.02601849,0.00026718,2]
[339068867,1727195441816,-267.77087463,0.00026727,7]
[339068868,1727195441826,-164.0,0.0002676,15]
[339068869,1727195441834,-1309.02601849,0.0002679,2]
[339068870,1727195441843,-3681.92705005,0.0002679,4]
[339068871,1727195441852,-19584.0,0.0002679,3]
[339068872,1727195441862,-150.112233,0.000268,5]
[339068873,1727195441870,-200.2182633,0.00026873,2]
[339068874,1727195441879,-29455.4164004,0.0002688,4]
[339068875,1727195441888,-307.69781721,0.00026889,2]
[339068876,1727195441898,-736.182447,0.0002689,7]
[339068877,1727195441907,-736.182447,0.0002689,7]
[339068878,1727195441916,-736.182447,0.0002689,7]
[339068879,1727195442010,-736.182447,0.0002689,7]
[339068880,1727195442019,-736.182447,0.0002689,7]
[339068881,1727195442030,-736.182447,0.0002689,7]
[339068882,1727195442039,-151.0,0.0002689,7]
[339068883,1727195442048,-151.0,0.0002689,7]
[339068884,1727195442057,-151.0,0.0002689,7]
[339068885,1727195442070,-773.316913,0.0002689,7]
[339068886,1727195442079,-773.316913,0.0002689,7]
[339068887,1727195442088,-773.316913,0.0002689,7]
[339068888,1727195442097,-773.316913,0.0002689,7]
[339068889,1727195442107,-773.316913,0.0002689,7]
[339068890,1727195442116,-773.316913,0.0002689,7]
[339068891,1727195442125,-664.53855,0.0002689,7]
[339068892,1727195442134,-664.53855,0.0002689,7]
[339068893,1727195442145,-664.53855,0.0002689,7]
[339068894,1727195442154,-664.53855,0.0002689,7]
[339068895,1727195442164,-664.53855,0.0002689,7]
[339068896,1727195442173,-664.53855,0.0002689,7]
[339068897,1727195442182,-159.908072,0.0002689,7]
[339068898,1727195442193,-159.908072,0.0002689,7]
[339068899,1727195442203,-159.908072,0.0002689,7]
[339068900,1727195442212,-159.908072,0.0002689,7]
[339068901,1727195442221,-383.894364,0.0002689,7]
[339068902,1727195442230,-383.894364,0.0002689,7]
[339068903,1727195442239,-383.894364,0.0002689,7]
[339068904,1727195442249,-383.894364,0.0002689,7]
[339068905,1727195442258,-383.894364,0.0002689,7]
[339068906,1727195442268,-383.894364,0.0002689,7]
[339068907,1727195442277,-157.97917,0.0002689,7]
[339068908,1727195442286,-530.317053,0.0002689,7]
[339068909,1727195442295,-530.317053,0.0002689,7]
[339068910,1727195442304,-530.317053,0.0002689,7]
[339068911,1727195442313,-530.317053,0.0002689,7]
[339068912,1727195442322,-2747.920549,0.0002689,7]
[339068913,1727195442331,-2747.920549,0.0002689,7]
[339068914,1727195442340,-2747.920549,0.0002689,7]
[339068915,1727195442349,-165.870844,0.0002689,7]
[339068916,1727195442358,-151.0,0.0002689,7]
[339068917,1727195442369,-165.870844,0.0002689,7]
[339068918,1727195442379,-151.0,0.0002689,7]
[339068919,1727195442388,-2747.920549,0.0002689,7]
[339068920,1727195442397,-2747.920549,0.0002689,7]
[339068921,1727195442407,-151.0,0.0002689,7]
[339068922,1727195442417,-165.870844,0.0002689,7]
[339068923,1727195442426,-151.0,0.0002689,7]
[339068924,1727195442435,-2747.920549,0.0002689,7]
[339068925,1727195442444,-165.870844,0.0002689,7]
[339068926,1727195442453,-1388.138646,0.0002689,7]
[339068927,1727195442462,-1388.138646,0.0002689,7]
[339068928,1727195442471,-1388.138646,0.0002689,7]
[339068929,1727195442480,-1388.138646,0.0002689,7]
[339068930,1727195442490,-478.55,0.00026899,2]
[339068931,1727195442499,-478.55,0.00026899,2]
[339068932,1727195442508,-478.55,0.00026899,2]
[339068933,1727195442518,-478.55,0.00026899,2]
[339068934,1727195442527,-478.55,0.00026899,2]
[339068935,1727195442537,-478.55,0.00026899,2]
[339068936,1727195442546,-478.55,0.00026899,2]
[339068937,1727195442556,-478.55,0.00026899,2]
[339068938,1727195442565,-55.99493629,0.00026899,2]
[339068956,1727195968675,9499.0,0.0002221,60]
[339068958,1727196328474,186.5930807,0.00019687,2]
[339068959,1727196429148,-300.0,0.00020721,2]
[339068960,1727196429169,-300.0,0.00020721,2]
[339068961,1727196429192,-500.0,0.00020722,2]
[339068962,1727196429216,-500.0,0.00020722,2]
[339068963,1727196429242,-500.0,0.00020722,2]
[339068964,1727196429264,-500.0,0.00020722,2]
[339068965,1727196429285,-189.55243368,0.00020722,2]
[339068966,1727196429309,-442.55033987,0.00020722,2]
[339068967,1727196504321,562.174039,0.00019849,2]
[339068968,1727196554134,-300.0,0.0002072,2]
[339068969,1727196554156,-300.0,0.0002072,2]
[339068970,1727196554178,-500.0,0.00020721,2]
[339068971,1727196554200,-500.0,0.00020721,2]
[339068972,1727196554224,-500.0,0.00020721,2]
[339068973,1727196554249,-500.0,0.00020721,2]
[339068974,1727196554272,-500.0,0.00020721,2]
[339068975,1727196554295,-500.0,0.00020721,2]
[339068976,1727196554315,-500.0,0.00020721,2]
[339068977,1727196554340,-378.40751393,0.00020721,2]
[339068978,1727196554361,-500.0,0.00020721,2]
[339068979,1727196554383,-500.0,0.00020721,2]
[339068980,1727196554404,-500.0,0.00020721,2]
[339068981,1727196554427,-500.0,0.00020721,2]
[339068982,1727196554447,-509.17229603,0.00020721,2]
[339068983,1727196554470,-500.0,0.00020721,2]
[339068984,1727196554494,-500.0,0.00020721,2]
[339068985,1727196554516,-500.0,0.00020721,2]
[339068986,1727196554538,-500.0,0.00020721,2]
[339068987,1727196554560,-500.0,0.00020721,2]
[339068988,1727196554584,-500.0,0.00020721,2]
[339068989,1727196554604,-500.0,0.00020721,2]
[339068990,1727196554624,-500.0,0.00020721,2]
[339068991,1727196554645,-500.0,0.00020721,2]
[339068992,1727196554665,-500.0,0.00020721,2]
[339068993,1727196554686,-500.0,0.00020721,2]
[339068994,1727196554708,-500.0,0.00020721,2]
[339068995,1727196554730,-500.0,0.00020721,2]
[339068996,1727196554751,-500.0,0.00020721,2]
[339068997,1727196554773,-500.0,0.00020721,2]
[339068998,1727196554794,-500.0,0.00020721,2]
[339068999,1727196554815,-500.0,0.00020721,2]
[339069000,1727196554838,-500.0,0.00020721,2]
[339069001,1727196554858,-500.0,0.00020721,2]
[339069002,1727196554880,-500.0,0.00020721,2]
[339069003,1727196554900,-500.0,0.00020721,2]
[339069004,1727196554921,-500.0,0.00020721,2]
[339069005,1727196554942,-500.0,0.00020721,2]
[339069006,1727196554963,-500.0,0.00020721,2]
[339069007,1727196554984,-500.0,0.00020721,2]
[339069008,1727196555006,-500.0,0.00020721,2]
[339069009,1727196555026,-500.0,0.00020721,2]
[339069010,1727196555047,-500.0,0.00020721,2]
[339069011,1727196555068,-500.0,0.00020721,2]
[339069012,1727196555091,-500.0,0.00020721,2]
[339069013,1727196555112,-500.0,0.00020721,2]
[339069014,1727196555134,-500.0,0.00020721,2]
[339069015,1727196555159,-500.0,0.00020721,2]
[339069016,1727196555183,-500.0,0.00020721,2]
[339069017,1727196555221,-500.0,0.00020721,2]
[339069018,1727196555247,-311.26161633,0.00020721,2]
[339069019,1727196555280,-188.73838367,0.00020721,2]
[339069020,1727196555303,-500.0,0.00020721,2]
[339069021,1727196555327,-350.08293683,0.00020721,2]
[339069022,1727196563134,-149.91706317,0.00020721,2]
[339069023,1727196563158,-500.0,0.00020721,2]
[339069024,1727196563181,-500.0,0.00020721,2]
[339069025,1727196563204,-500.0,0.00020721,2]
[339069026,1727196563226,-500.0,0.00020721,2]
[339069027,1727196563248,-500.0,0.00020721,2]
[339069028,1727196563272,-500.0,0.00020721,2]
[339069029,1727196563294,-500.0,0.00020721,2]
[339069030,1727196563316,-500.0,0.00020721,2]
[339069031,1727196563339,-500.0,0.00020721,2]
[339069032,1727196563361,-500.0,0.00020721,2]
[339069033,1727196563383,-500.0,0.00020721,2]
[339069034,1727196563405,-500.0,0.00020721,2]
[339069035,1727196563426,-500.0,0.00020721,2]
[339069036,1727196563448,-500.0,0.00020721,2]
[339069037,1727196563471,-500.0,0.00020721,2]
[339069038,1727196563496,-500.0,0.00020721,2]
[339069039,1727196563518,-500.0,0.00020721,2]
[339069040,1727196563542,-500.0,0.00020721,2]
[339069041,1727196563568,-500.0,0.00020721,2]
[339069042,1727196563595,-500.0,0.00020721,2]
[339069043,1727196563619,-500.0,0.00020721,2]
[339069044,1727196563642,-500.0,0.00020721,2]
[339069045,1727196563666,-500.0,0.00020721,2]
[339069046,1727196563690,-500.0,0.00020721,2]
[339069047,1727196563715,-500.0,0.00020721,2]
[339069048,1727196563741,-500.0,0.00020721,2]
[339069049,1727196563766,-500.0,0.00020721,2]
[339069050,1727196563790,-500.0,0.00020721,2]
[339069051,1727196563815,-500.0,0.00020721,2]
[339069052,1727196563845,-500.0,0.00020721,2]
[339069053,1727196563868,-500.0,0.00020721,2]
[339069054,1727196563891,-500.0,0.00020721,2]
[339069055,1727196563914,-500.0,0.00020721,2]
[339069056,1727196563936,-500.0,0.00020721,2]
[339069057,1727196563957,-500.0,0.00020721,2]
[339069058,1727196563980,-500.0,0.00020721,2]
[339069059,1727196564003,-500.0,0.00020721,2]
[339069060,1727196564025,-500.0,0.00020721,2]
[339069061,1727196564048,-500.0,0.00020721,2]
[339069062,1727196564070,-500.0,0.00020721,2]
[339069063,1727196564092,-594.00524643,0.00020721,2]
[339069064,1727196564114,-24900.0,0.00020723,2]
[339069065,1727196564134,-444.2966598,0.00020825,2]
[339069066,1727196564156,-165.465457,0.00020874,2]
[339069067,1727196564178,-250.0,0.00020893,2]
[339069068,1727196564201,-400.99864284,0.00020983,2]
[339069069,1727196564224,-500.0,0.00020983,2]
[339069070,1727196564246,-163.63934473,0.00020983,2]
[339069071,1727196564268,-500.0,0.00020983,2]
[339069072,1727196564290,-500.0,0.00020983,2]
[339069073,1727196564312,-500.0,0.00020983,2]
[339069074,1727196564333,-500.0,0.00020983,2]
[339069075,1727196564357,-637.70055067,0.00020983,2]
[339069076,1727196564379,-500.0,0.00020983,2]
[339069077,1727196564401,-380.77482558,0.00020983,2]
[339069078,1727196564554,-500.0,0.00020983,2]
[339069079,1727196564577,-500.0,0.00020983,2]
[339069080,1727196564600,-500.0,0.00020983,2]
[339069081,1727196564621,-500.0,0.00020983,2]
[339069082,1727196564642,-3000.0,0.00020984,2]
[339069083,1727196564663,-597.12104881,0.00021,30]
[339069084,1727196564684,-500.0,0.00021,30]
[339069085,1727196564704,-642.8086434,0.00021032,2]
[339069086,1727196564724,-965.698888,0.0002106,2]
[339069087,1727196564745,-3665.9835625,0.0002106,2]
[339069088,1727196564766,-169.239022,0.00021126,2]
[339069089,1727196564787,-169.239022,0.00021179,2]
[339069090,1727196564808,-169.239022,0.00021231,2]
[339069091,1727196564829,-250.0,0.00021536,2]
[339069092,1727196564852,-250.0,0.00021595,2]
[339069093,1727196564873,-21.73692029,0.00021654,2]
[339069094,1727196585064,2814.00696557,0.0002,2]
[339069095,1727196602035,1000.0,0.00021,45]
[339069136,1727196638523,-643.799258,0.00021081,2]
[339069137,1727196638533,-250.0,0.00021452,2]
[339069138,1727196638544,-250.0,0.00021511,2]
[339069139,1727196638555,-250.0,0.0002157,2]
[339069140,1727196638566,-250.0,0.00021628,2]
[339069141,1727196638575,-250.0,0.00021687,2]
[339069142,1727196638587,-250.0,0.00021746,2]
[339069143,1727196638597,-643.799258,0.00021766,2]
[339069144,1727196638607,-250.0,0.00021805,2]
[339069145,1727196638617,-250.0,0.00021864,2]
[339069146,1727196638626,-166.666666,0.00021918,2]
[339069147,1727196638635,-250.0,0.00021923,2]
[339069148,1727196638645,-500.0,0.0002194,2]
[339069149,1727196638658,-250.0,0.00021981,2]
[339069150,1727196638668,-250.0,0.0002204,2]
[339069151,1727196638677,-250.0,0.00022099,2]
[339069152,1727196638687,-250.0,0.00022158,2]
[339069153,1727196638696,-501.0,0.0002221,60]
[339069154,1727196638705,-250.0,0.00022217,2]
[339069155,1727196638714,-250.0,0.00022276,2]
[339069156,1727196638723,-250.0,0.00022334,2]
[339069157,1727196638732,-250.0,0.00022393,2]
[339069158,1727196638741,-166.666666,0.00022431,2]
[339069159,1727196638751,-300.0,0.00022431,2]
[339069160,1727196638763,-300.0,0.00022431,2]
[339069161,1727196638772,-643.799258,0.00022451,2]
[339069162,1727196638782,-250.0,0.00022452,2]
[339069163,1727196638791,-298.20966975,0.00022488,2]
[339069164,1727196638800,-280.69904999,0.00022507,2]
[339069165,1727196638809,-500.0,0.00022507,2]
[339069166,1727196638818,-500.0,0.00022507,2]
[339069167,1727196638828,-566.54237791,0.00022507,2]
[339069168,1727196638839,-500.0,0.00022507,2]
[339069169,1727196638849,-500.0,0.00022507,2]
[339069170,1727196638860,-500.0,0.00022507,2]
[339069171,1727196638869,-646.39038547,0.00022507,2]
[339069172,1727196638878,-500.0,0.00022507,2]
[339069173,1727196638887,-153.15639044,0.00022507,2]
[339069174,1727196638895,-612.13025512,0.00022507,2]
[339069175,1727196638906,-500.0,0.00022507,2]
[339069176,1727196638916,-500.0,0.00022507,2]
[339069177,1727196638924,-500.0,0.00022507,2]
[339069178,1727196638933,-500.0,0.00022507,2]
[339069179,1727196638944,-597.6233298,0.00022507,2]
[339069180,1727196638953,-33024.13992951,0.00022508,3]
[339069190,1727196639944,-44613.16792159,0.00022508,3]
[339069191,1727196639954,-76950.41162,0.00022508,3]
[339069192,1727196639964,-250.0,0.00022511,2]
[339069194,1727196639975,-250.0,0.0002257,2]
[339069196,1727196639984,-77637.3078511,0.00022603,3]
[339069198,1727196639993,-76950.41162,0.00022603,3]
[339069200,1727196640003,-500.97335701,0.00022673,2]
[339069202,1727196640012,-500.0,0.00022673,2]
[339069204,1727196640021,-500.0,0.00022673,2]
[339069206,1727196640030,-166.666666,0.00022944,2]
[339069208,1727196640040,-302.48582854,0.00023,2]
[339069210,1727196640049,-1000.0,0.00023221,2]
[339069212,1727196640058,-213.03133597,0.00023288,2]
[339069214,1727196640068,-166.666666,0.00023456,2]
[339069216,1727196640077,-166.666666,0.00023969,2]
[339069218,1727196640087,-1500.0,0.00024222,2]
[339069220,1727196640096,-420.0,0.00024364,2]
[339069222,1727196640105,-153.7752004,0.000244,2]
[339069224,1727196640114,-166.666666,0.00024482,2]
[339069226,1727196640123,-420.0,0.00024674,2]
[339069228,1727196640133,-325.89570339,0.00024943,2]
[339069230,1727196640142,-1000.0,0.00025,25]
[339069232,1727196640153,-500.0,0.00025,30]
[339069234,1727196640162,-500.0,0.00025,30]
[339069236,1727196640172,-981.21114395,0.00025,30]
[339069239,1727196640185,-504.69636479,0.00025,30]
[339069241,1727196640194,-317.13750222,0.00025,30]
[339069243,1727196640205,-500.0,0.00025,30]
[339069245,1727196640215,-445.70209464,0.00025,30]
[339069247,1727196640226,-500.0,0.00025,30]
[339069249,1727196640237,-1444.10600063,0.00025,7]
[339069251,1727196640248,-150.112238,0.000253,5]
[339069253,1727196640259,-49923.16991133,0.00025307,3]
[339069275,1727196640537,-328.28270888,0.00021086,2]
[339069276,1727196640551,-469.87337002,0.00021086,2]
[339069277,1727196640560,-2889.57309917,0.00025307,3]
[339069306,1727196643309,-17.90848153,0.00025307,3]
[339069312,1727196646329,-1732.11,0.00025297,3]
[339069313,1727196646339,-24806.65635907,0.00025307,3]
[339069314,1727196646349,-76950.41162,0.00025307,3]
[339069315,1727196646358,-500.0,0.00025317,2]
[339069316,1727196646368,-2000.0,0.0002552,2]
[339069317,1727196646378,-150.112233,0.000256,5]
[339069318,1727196646387,-1724.59314945,0.0002579,2]
[339069319,1727196646397,-178.51722362,0.000258,7]
[339069320,1727196646606,-178.51722362,0.000258,7]
[339069321,1727196646630,-1140.39,0.000258,2]
[339069322,1727196646640,-1140.39,0.0002585,2]
[339069323,1727196646650,-1140.57,0.0002586,2]
[339069324,1727196646660,-1140.39,0.0002586,2]
[339069325,1727196646670,-1140.39,0.0002586,2]
[339069326,1727196646679,-1140.39,0.0002586,2]
[339069327,1727196646688,-1021.59241469,0.00025865,2]
[339069328,1727196646697,-500.28702464,0.00025873,2]
[339069329,1727196646706,-151.62119636,0.00025873,2]
[339069330,1727196646716,-507.24349001,0.00025873,2]
[339069331,1727196646726,-500.0,0.00025873,2]
[339069332,1727196646735,-96496.3666111,0.0002588,3]
[339069335,1727197047123,4006.27,0.0002,2]
[339069336,1727197147950,1018.442694,0.0001987,2]
[339069337,1727197154227,3000.0,0.0002,2]
[339069338,1727197266832,173.42282,0.0001979,2]
[339069339,1727197267065,173.42282,0.00019795,2]
[339069340,1727197267500,173.42282,0.000198,2]
[339069341,1727197267727,173.42282,0.00019805,2]
[339069342,1727197267975,173.42282,0.0001981,2]
[339069343,1727197268213,173.42282,0.00019816,2]
[339069344,1727197268428,173.42282,0.00019821,2]
[339069345,1727197268647,173.42282,0.00019826,2]
[339069346,1727197268915,173.42282,0.00019831,2]
[339069347,1727197269490,173.42282,0.00019836,2]
[339069348,1727197269577,173.42282,0.00019842,2]
[339069349,1727197269820,173.42282,0.00019847,2]
[339069350,1727197270018,173.42282,0.00019852,2]
[339069351,1727197270264,173.42282,0.00019857,2]
[339069352,1727197270558,173.42282,0.00019862,2]
[339069353,1727197270797,173.42282,0.00019868,2]
[339069354,1727197271051,173.42282,0.00019873,2]
[339069355,1727197271312,173.42282,0.00019878,2]
[339069356,1727197271598,173.42282,0.00019883,2]
[339069357,1727197271903,173.42282,0.00019888,2]
[339069359,1727197379192,244.3943096,0.00019722,2]
[339069360,1727197409200,176.461011,0.00019448,2]
[339069361,1727197410987,24900.0,0.00019722,2]
[339069364,1727197563955,5000.0,0.00019722,2]
[339069366,1727197647155,-284.93116722,0.00020205,3]
[339069367,1727197647178,-190.11426958,0.00020272,2]
[339069368,1727197654106,-251.23286042,0.00020272,2]
[339069369,1727197654129,-205.210943,0.00020305,2]
[339069370,1727197654151,-205.210943,0.0002036,2]
[339069371,1727197654173,-205.210943,0.00020416,2]
[339069372,1727197654195,-205.210943,0.00020472,2]
[339069373,1727197654216,-205.210943,0.00020528,2]
[339069374,1727197654237,-297.1909146,0.00020555,2]
[339069375,1727197749186,-444.3903014,0.00020162,2]
[339069376,1727197760111,-278.6805476,0.00020162,2]
[339069377,1727197760135,-327.549828,0.00020194,2]
[339069378,1727197760162,-195.630796,0.00020575,2]
[339069379,1727197760192,-195.630796,0.00020631,2]
[339069380,1727197760214,-195.630796,0.00020688,2]
[339069381,1727197760237,-195.630796,0.00020744,2]
[339069382,1727197760261,-195.630796,0.000208,2]
[339069383,1727197760282,-723.070849,0.00020847,2]
[339069384,1727197760306,-195.630796,0.00020857,2]
[339069385,1727197760329,-195.630796,0.00020913,2]
[339069386,1727197760354,-195.630796,0.0002097,2]
[339069387,1727197760375,-500.0,0.00021,30]
[339069388,1727197760397,-195.630796,0.00021026,2]
[339069389,1727197760419,-195.630796,0.00021083,2]
[339069390,1727197760446,-195.630796,0.00021139,2]
[339069391,1727197760467,-195.630796,0.00021195,2]
[339069392,1727197760489,-195.630796,0.00021252,2]
[339069393,1727197760510,-195.630796,0.00021308,2]
[339069394,1727197760531,-195.630796,0.00021365,2]
[339069395,1727197760555,-3000.0,0.000214,2]
[339069396,1727197760577,-300.0,0.00021409,2]
[339069397,1727197760598,-300.0,0.00021409,2]
[339069398,1727197760619,-3000.0,0.0002141,2]
[339069399,1727197760641,-3000.0,0.0002142,2]
[339069400,1727197760665,-195.630796,0.00021421,2]
[339069401,1727197760689,-3000.0,0.0002143,2]
[339069402,1727197760710,-3000.0,0.0002144,2]
[339069403,1727197760733,-500.0,0.00021449,2]
[339069404,1727197760757,-279.26002886,0.00021449,2]
[339069405,1727197760777,-3000.0,0.0002145,2]
[339069406,1727197760799,-3000.0,0.0002146,2]
[339069407,1727197760821,-3000.0,0.0002147,2]
[339069408,1727197760842,-195.630796,0.00021478,2]
[339069409,1727197760864,-2186.63296137,0.0002148,2]
[339069410,1727197764089,-813.36703863,0.0002148,2]
[339069411,1727197764110,-864.96773079,0.0002149,2]
[339069413,1727197771147,-310.17728815,0.00021449,2]
[339069417,1727197832417,-570.91189639,0.0002149,2]
[339069507,1727197840890,-2978.78273082,0.0002149,2]
[339069509,1727197840900,-723.070849,0.00021532,2]
[339069512,1727197840910,-195.630796,0.00021534,2]
[339069513,1727197840920,-195.630796,0.00021591,2]
[339069515,1727197840929,-195.630796,0.00021647,2]
[339069517,1727197840941,-166.666666,0.00021918,2]
[339069520,1727197840951,-166.666666,0.00022431,2]
[339069522,1727197840960,-166.666666,0.00022944,2]
[339069524,1727197840970,-166.666666,0.00023456,2]
[339069526,1727197840980,-300.0,0.00023968,2]
[339069528,1727197840990,-200.0,0.00023968,10]
[339069530,1727197841001,-300.0,0.00023968,2]
[339069532,1727197841011,-200.0,0.00023968,10]
[339069534,1727197841022,-123.69779043,0.00023969,2]
[339069543,1727197841096,-42.96887557,0.00023969,2]
[339069545,1727197841106,-166.666666,0.00024482,2]
[339069547,1727197841115,-109.10038669,0.00024658,15]
[339069549,1727197841127,-90.89961331,0.00024658,15]
[339069551,1727197841136,-153.0,0.00024841,2]
[339069553,1727197841145,-153.0,0.00024841,2]
[339069555,1727197841155,-173.422822,0.00024878,2]
[339069557,1727197841163,-306.0,0.00024941,2]
[339069559,1727197841173,-153.0,0.00024941,2]
[339069561,1727197841183,-500.0,0.00025,30]
[339069563,1727197841192,-500.0,0.00025,30]
[339069566,1727197841206,-500.0,0.00025,30]
[339069568,1727197841216,-173.422822,0.00025002,2]
[339069570,1727197841226,-183.6746109,0.00025036,2]
[339069572,1727197841236,-306.0,0.00025036,2]
[339069574,1727197841246,-475.85340803,0.00025697,2]
[339069576,1727197841256,-371.67602169,0.00025759,2]
[339069578,1727197841265,-371.67602165,0.00025764,2]
[339069580,1727197841275,-371.67602165,0.00025769,2]
[339069582,1727197841285,-371.67602165,0.00025774,2]
[339069584,1727197841294,-959.23800353,0.00025779,2]
[339069861,1727197846931,-777.39590715,0.00025779,2]
[339069862,1727197846944,-371.67602165,0.00025779,2]
[339069863,1727197846954,-942.33,0.00025831,3]
[339069864,1727197846964,-500.0,0.00025838,2]
[339069865,1727197846974,-270.60034706,0.00025838,2]
[339069866,1727197846984,-500.0,0.00025838,2]
[339069867,1727197846994,-388.27575248,0.00025838,2]
[339069868,1727197847005,-258.94836011,0.00025839,2]
[339069869,1727197847017,-500.0,0.00025839,2]
[339069870,1727197847028,-500.0,0.00025839,2]
[339069871,1727197847037,-302.47326983,0.00025839,2]
[339069872,1727197847047,-500.0,0.00025839,2]
[339069873,1727197847057,-500.0,0.00025839,2]
[339069874,1727197847066,-500.0,0.00025839,2]
[339069875,1727197847076,-394.93448585,0.00025839,2]
[339069876,1727197847086,-1327.02,0.0002584,2]
[339069877,1727197847095,-1200.0,0.0002584,2]
[339069878,1727197847105,-1200.0,0.0002584,2]
[339069879,1727197847115,-1200.0,0.0002584,2]
[339069880,1727197847125,-1200.0,0.0002584,2]
[339069881,1727197847134,-1200.0,0.0002584,2]
[339069882,1727197847145,-1200.0,0.0002584,2]
[339069883,1727197847155,-1200.0,0.0002584,2]
[339069884,1727197847165,-1200.0,0.0002584,2]
[339069885,1727197847174,-1200.0,0.0002584,2]
[339069886,1727197847183,-1200.0,0.0002584,2]
[339069887,1727197847193,-1200.0,0.0002584,2]
[339069888,1727197847318,-1200.0,0.0002584,2]
[339069889,1727197847328,-1200.0,0.0002584,2]
[339069890,1727197847337,-1200.0,0.0002584,2]
[339069891,1727197847346,-1200.0,0.0002584,2]
[339069892,1727197847356,-1200.0,0.0002584,2]
[339069893,1727197847366,-38783.84585591,0.0002584,3]
[339069894,1727197986970,198.0,0.0002,2]
[339069895,1727198004700,-300.0,0.00024295,2]
[339069896,1727198004722,-300.0,0.00024295,2]
[339069897,1727198004743,-307.1840786,0.00024295,10]
[339069898,1727198004764,-3000.0,0.00024296,2]
[339069899,1727198004787,-150.0,0.000244,2]
[339069900,1727198004808,-1294.3635865,0.00024732,2]
[339069901,1727198004984,-380.0,0.00024849,2]
[339069902,1727198005006,-1941.885253,0.000254,2]
[339069903,1727198005028,-153.0,0.000254,2]
[339069904,1727198005049,-605.0018483,0.00025711,6]
[339069905,1727198005072,-1562.97051963,0.00025769,2]
[339069906,1727198005094,-1000.0,0.0002577,2]
[339069907,1727198005116,-61458.1014768,0.00025831,3]
[339069908,1727198005139,-11852.6010835,0.00025831,4]
[339069909,1727198005162,-1471.29,0.00025831,3]
[339069910,1727198005184,-1226.07,0.00025838,3]
[339069911,1727198005209,-154.25286139,0.00025839,2]
[339069912,1727198005233,-122916.202954,0.00025848,3]
[339069913,1727198005255,-23705.202167,0.00025848,4]
[339069914,1727198005278,-122916.202954,0.00025849,3]
[339069915,1727198005301,-35557.8032504,0.00025849,4]
[339069916,1727198005323,-41631.61556183,0.00025858,10]
[339069917,1727198005346,-71174.02621367,0.00025858,10]
[339069918,1727198005370,-54942.22619138,0.00025859,4]
[339069920,1727198060261,-24900.0,0.00024862,2]
[339069921,1727198060284,-300.0,0.00025858,2]
[339069922,1727198060306,-300.0,0.00025858,2]
[339069923,1727198060329,-51731.18355962,0.00025859,4]
[339069924,1727198060353,-1021.73,0.00025859,3]
[339069925,1727198060376,-851.44,0.00025859,3]
[339069926,1727198060397,-709.53,0.00025859,3]